fUST/lending_fUST_20250810
["ID","MTS","AMOUNT","RATE_DAILY","PERIOD"]
[378314456,1754817032961,-460.0,0.00021127,2]
[378314457,1754817032974,-460.0,0.00021127,2]
[378314458,1754817032984,-460.0,0.00021127,2]
[378314459,1754817032994,-460.0,0.00021127,2]
[378314460,1754817033003,-460.0,0.00021127,2]
[378314461,1754817033014,-460.0,0.00021127,2]
[378314462,1754817033023,-460.0,0.00021127,2]
[378314463,1754817033033,-460.0,0.00021127,2]
[378314464,1754817033043,-460.0,0.00021127,2]
[378314465,1754817033053,-460.0,0.00021127,2]
[378314466,1754817033065,-460.0,0.00021127,2]
[378314467,1754817033078,-460.0,0.00021127,2]
[378314468,1754817033088,-460.0,0.00021127,2]
[378314469,1754817033097,-503.78,0.00021127,2]
[378314470,1754817033107,-460.0,0.00021127,2]
[378314471,1754817033117,-460.0,0.00021127,2]
[378314472,1754817033127,-248.48533436,0.00021127,2]
[378314473,1754817033137,-460.0,0.00021127,2]
[378314474,1754817033147,-460.0,0.00021127,2]
[378314475,1754817033158,-460.0,0.00021127,2]
[378314476,1754817033167,-460.0,0.00021127,2]
[378314477,1754817033177,-460.0,0.00021127,2]
[378314478,1754817033187,-460.0,0.00021127,2]
[378314479,1754817033197,-460.0,0.00021127,2]
[378314480,1754817033207,-460.0,0.00021127,2]
[378314481,1754817033217,-521.84,0.00021127,2]
[378314482,1754817033228,-460.58662214,0.00021127,2]
[378314483,1754817033238,-460.0,0.00021127,2]
[378314484,1754817033248,-794.74,0.00021127,2]
[378314485,1754817033258,-584.66,0.00021127,2]
[378314486,1754817033268,-460.0,0.00021127,2]
[378314487,1754817033278,-488.71155435,0.00021128,2]
[378314488,1754817033287,-489.39731074,0.00021128,2]
[378314489,1754817033297,-460.0,0.00021128,2]
[378314490,1754817033308,-460.0,0.00021128,2]
[378314491,1754817033318,-460.0,0.00021128,2]
[378314492,1754817033328,-173.8510564,0.00021128,2]
[378314493,1754817033338,-460.0,0.00021128,2]
[378314494,1754817033347,-460.0,0.00021128,2]
[378314495,1754817033356,-460.0,0.00021128,2]
[378314496,1754817033367,-506.97,0.00021128,2]
[378314497,1754817033377,-325.0,0.00021128,2]
[378314498,1754817033386,-151.0,0.00021129,2]
[378314499,1754817033396,-500.0,0.00021129,2]
[378314500,1754817033406,-500.0,0.00021129,2]
[378314501,1754817033416,-252.12946711,0.00021333,2]
[378314502,1754817033427,-184.37172482,0.00021347,2]
[378314503,1754817033437,-3616.63324996,0.0002135,2]
[378314504,1754817033446,-333.0,0.00021373,2]
[378314505,1754817033456,-460.0,0.000214,2]
[378314506,1754817033465,-493.36,0.000214,2]
[378314507,1754817033475,-460.0,0.000214,2]
[378314508,1754817033484,-4072.81,0.000214,2]
[378314509,1754817033494,-261.22,0.000214,2]
[378314510,1754817033503,-406.6518418,0.000214,2]
[378314511,1754817033514,-460.0,0.000214,2]
[378314512,1754817033523,-460.0,0.000214,2]
[378314513,1754817033534,-460.0,0.000214,2]
[378314514,1754817033544,-449.35,0.000214,2]
[378314515,1754817033554,-460.0,0.000214,2]
[378314516,1754817033564,-492.53055908,0.00021401,2]
[378314517,1754817033574,-333.0,0.00021401,2]
[378314518,1754817033583,-460.0,0.00021401,2]
[378314519,1754817033593,-460.0,0.00021401,2]
[378314520,1754817033602,-480.77872443,0.00021401,2]
[378314521,1754817033612,-500.0,0.00021401,2]
[378314522,1754817033621,-460.0,0.00021401,2]
[378314523,1754817033630,-460.0,0.00021401,2]
[378314524,1754817033640,-460.0,0.00021401,2]
[378314525,1754817033649,-460.0,0.00021401,2]
[378314526,1754817033659,-563.42,0.00021401,2]
[378314527,1754817033669,-460.0,0.00021401,2]
[378314528,1754817033678,-460.0,0.00021401,2]
[378314529,1754817033687,-151.0,0.00021401,2]
[378314530,1754817033697,-477.19,0.00021401,2]
[378314531,1754817033706,-460.0,0.00021401,2]
[378314532,1754817033716,-460.0,0.00021401,2]
[378314533,1754817033726,-460.0,0.00021401,2]
[378314534,1754817033735,-460.0,0.00021401,2]
[378314535,1754817033745,-460.0,0.00021401,2]
[378314536,1754817033754,-460.0,0.00021401,2]
[378314537,1754817033764,-460.0,0.00021401,2]
[378314538,1754817033774,-460.0,0.00021401,2]
[378314539,1754817033783,-460.0,0.00021401,2]
[378314540,1754817033794,-460.0,0.00021401,2]
[378314541,1754817033803,-460.0,0.00021401,2]
[378314542,1754817033813,-465.95640775,0.00021401,2]
[378314543,1754817033823,-460.0,0.00021401,2]
[378314544,1754817033833,-460.0,0.00021401,2]
[378314545,1754817033843,-460.0,0.00021401,2]
[378314546,1754817033853,-366.2,0.00021401,2]
[378314547,1754817033863,-460.0,0.00021401,2]
[378314548,1754817033873,-460.0,0.00021401,2]
[378314549,1754817033883,-460.0,0.00021401,2]
[378314550,1754817033893,-794.74,0.00021401,2]
[378314551,1754817033902,-151.0,0.00021401,2]
[378314552,1754817033911,-173.449166,0.00021401,2]
[378314553,1754817033921,-524.07916061,0.00021402,2]
[378314554,1754817033930,-151.0,0.00021402,2]
[378314555,1754817033940,-178.335803,0.00021402,2]
[378314556,1754817033949,-151.0,0.00021402,2]
[378314557,1754817033959,-151.0,0.00021402,2]
[378314558,1754817033968,-475.26544523,0.00021402,2]
[378314559,1754817033978,-337.99244779,0.00021402,2]
[378314560,1754817033988,-460.0,0.00021402,2]
[378314561,1754817033997,-460.0,0.00021402,2]
[378314562,1754817034006,-460.0,0.00021402,2]
[378314563,1754817034016,-506.97,0.00021402,2]
[378314564,1754817034025,-198.0,0.00021403,2]
[378314565,1754817034035,-500.0,0.00021403,2]
[378314566,1754817034045,-151.0,0.00021403,2]
[378314567,1754817034054,-151.0,0.00021403,2]
[378314568,1754817034065,-500.0,0.00021403,2]
[378314569,1754817034075,-2657.93,0.0002144,3]
[378314570,1754817034085,-1328.97,0.0002144,3]
[378314571,1754817034095,-664.48,0.0002144,3]
[378314572,1754817034107,-332.24,0.0002144,3]
[378314573,1754817034117,-166.12,0.0002144,3]
[378314574,1754817034127,-498.39,0.0002144,3]
[378314575,1754817034137,-334.65,0.0002144,10]
[378314576,1754817034148,-459.92,0.0002144,10]
[378314577,1754817034157,-70696.9065416,0.0002145,14]
[378314578,1754817034167,-151.0,0.0002145,2]
[378314579,1754817034176,-151.0,0.0002145,2]
[378314580,1754817034186,-151.0,0.0002145,2]
[378314581,1754817034196,-151.0,0.0002145,2]
[378314582,1754817034205,-151.0,0.0002145,2]
[378314583,1754817034215,-151.0,0.0002145,2]
[378314584,1754817034224,-240.004575,0.0002145,2]
[378314585,1754817034234,-151.0,0.0002145,2]
[378314586,1754817034244,-500.0,0.00021473,2]
[378314587,1754817034254,-331.0,0.00021631,2]
[378314588,1754817034263,-506.76482346,0.00021636,2]
[378314589,1754817034273,-1111.0,0.00021654,2]
[378314590,1754817034477,-1620.86049073,0.00021655,2]
[378314591,1754817034488,-500.0,0.00021673,2]
[378314592,1754817034498,-524.1944747,0.00021673,2]
[378314593,1754817034507,-500.0,0.00021673,2]
[378314594,1754817034516,-504.89955754,0.00021673,2]
[378314595,1754817034525,-500.0,0.00021673,2]
[378314596,1754817034535,-500.0,0.00021673,2]
[378314597,1754817034543,-512.68909714,0.00021673,2]
[378314598,1754817034553,-333.0,0.00021673,2]
[378314599,1754817034562,-164.297084,0.00021673,2]
[378314600,1754817034571,-151.0,0.00021674,2]
[378314601,1754817034580,-151.0,0.00021674,2]
[378314602,1754817034589,-460.0,0.00021674,2]
[378314603,1754817034599,-460.0,0.00021674,2]
[378314604,1754817034608,-4072.81,0.00021674,2]
[378314605,1754817034617,-460.0,0.00021674,2]
[378314606,1754817034626,-460.0,0.00021674,2]
[378314607,1754817034636,-460.0,0.00021674,2]
[378314608,1754817034646,-151.0,0.00021674,2]
[378314609,1754817034656,-460.0,0.00021674,2]
[378314610,1754817034665,-500.0,0.00021674,2]
[378314611,1754817034674,-500.0,0.00021674,2]
[378314612,1754817034683,-553.62192193,0.00021674,2]
[378314613,1754817034693,-500.0,0.00021674,2]
[378314614,1754817034702,-500.0,0.00021674,2]
[378314615,1754817034711,-500.0,0.00021674,2]
[378314616,1754817034721,-500.0,0.00021674,2]
[378314617,1754817034730,-500.0,0.00021674,2]
[378314618,1754817034739,-500.0,0.00021674,2]
[378314619,1754817034748,-500.0,0.00021674,2]
[378314620,1754817034757,-500.0,0.00021674,2]
[378314621,1754817034766,-500.0,0.00021674,2]
[378314622,1754817034776,-500.0,0.00021674,2]
[378314623,1754817034785,-151.0,0.00021675,2]
[378314624,1754817034794,-151.0,0.00021675,2]
[378314625,1754817034804,-460.0,0.00021675,2]
[378314626,1754817034813,-460.0,0.00021675,2]
[378314627,1754817034823,-460.0,0.00021675,2]
[378314628,1754817034835,-460.0,0.00021675,2]
[378314629,1754817034845,-460.0,0.00021675,2]
[378314630,1754817034854,-460.0,0.00021675,2]
[378314631,1754817034864,-460.0,0.00021675,2]
[378314632,1754817034874,-151.0,0.00021675,2]
[378314633,1754817034883,-460.0,0.00021675,2]
[378314634,1754817034893,-151.0,0.00021675,2]
[378314635,1754817034903,-460.0,0.00021675,2]
[378314636,1754817034912,-460.0,0.00021675,2]
[378314637,1754817034922,-460.0,0.00021675,2]
[378314638,1754817034931,-460.0,0.00021675,2]
[378314639,1754817034940,-460.0,0.00021675,2]
[378314640,1754817034950,-460.0,0.00021675,2]
[378314641,1754817034960,-321.95,0.00021675,2]
[378314642,1754817034969,-460.0,0.00021675,2]
[378314643,1754817034978,-460.0,0.00021675,2]
[378314644,1754817034988,-460.0,0.00021675,2]
[378314645,1754817034998,-460.0,0.00021675,2]
[378314646,1754817035008,-466.68342444,0.00021675,2]
[378314647,1754817035020,-402.96,0.00021675,2]
[378314648,1754817035030,-460.0,0.00021675,2]
[378314649,1754817035040,-460.0,0.00021675,2]
[378314650,1754817035051,-588.84,0.00021675,2]
[378314651,1754817035061,-460.0,0.00021675,2]
[378314652,1754817035076,-794.74,0.00021675,2]
[378314653,1754817035085,-151.0,0.00021675,2]
[378314654,1754817035095,-151.0,0.00021676,2]
[378314655,1754817035104,-504.99,0.00021676,2]
[378314656,1754817035113,-460.0,0.00021676,2]
[378314657,1754817035123,-460.0,0.00021676,2]
[378314658,1754817035132,-506.97,0.00021676,2]
[378314659,1754817035141,-572.50117837,0.00021677,2]
[378314660,1754817035153,-331.0,0.00021812,2]
[378314661,1754817035163,-331.0,0.00021824,2]
[378314662,1754817035173,-331.0,0.00021837,2]
[378314663,1754817035183,-331.0,0.00021837,2]
[378314664,1754817035192,-331.0,0.00021881,2]
[378314665,1754817035201,-200.0,0.0002189,2]
[378314666,1754817035210,-151.0,0.00021917,2]
[378314667,1754817035219,-151.0,0.00021917,2]
[378314668,1754817035228,-151.0,0.00021917,2]
[378314669,1754817035237,-151.0,0.00021917,2]
[378314670,1754817035246,-5206.82,0.00021917,2]
[378314671,1754817035256,-152.0,0.00021918,2]
[378314672,1754817035265,-237.72006043,0.00021918,2]
[378314673,1754817035274,-200.98986577,0.00021918,2]
[378314674,1754817035283,-460.0,0.00021948,2]
[378314675,1754817035292,-460.0,0.00021948,2]
[378314676,1754817035301,-4072.81,0.00021948,2]
[378314677,1754817035311,-460.0,0.00021948,2]
[378314678,1754817035320,-460.0,0.00021948,2]
[378314679,1754817035329,-460.0,0.00021948,2]
[378314680,1754817035338,-416.5,0.00021948,2]
[378314681,1754817035347,-453.0616643,0.00021949,2]
[378314682,1754817035356,-460.0,0.00021949,2]
[378314683,1754817035365,-267.42212361,0.00021949,2]
[378314684,1754817035374,-166.86,0.00021949,2]
[378314685,1754817035384,-460.0,0.00021949,2]
[378314686,1754817035393,-151.0,0.00021949,7]
[378314687,1754817035402,-460.0,0.00021949,2]
[378314688,1754817035411,-483.72228846,0.00021949,2]
[378314689,1754817035420,-460.0,0.00021949,2]
[378314690,1754817035429,-460.0,0.00021949,2]
[378314691,1754817035438,-460.0,0.00021949,2]
[378314692,1754817035447,-460.0,0.00021949,2]
[378314693,1754817035457,-460.0,0.00021949,2]
[378314694,1754817035466,-460.0,0.00021949,2]
[378314695,1754817035475,-460.0,0.00021949,2]
[378314696,1754817035484,-460.0,0.00021949,2]
[378314697,1754817035494,-460.0,0.00021949,2]
[378314698,1754817035503,-460.0,0.00021949,2]
[378314699,1754817035512,-460.0,0.00021949,2]
[378314700,1754817035521,-336.12,0.00021949,2]
[378314701,1754817035530,-794.74,0.00021949,2]
[378314702,1754817035539,-151.0,0.0002195,7]
[378314703,1754817035549,-460.0,0.0002195,2]
[378314704,1754817035558,-460.0,0.0002195,2]
[378314705,1754817035568,-506.97,0.0002195,2]
[378314706,1754817035577,-151.0,0.0002195,7]
[378314707,1754817035586,-151.0,0.00021951,7]
[378314708,1754817035596,-500.0,0.00021973,2]
[378314709,1754817035605,-500.0,0.00021973,2]
[378314710,1754817035614,-501.6986517,0.00021973,2]
[378314711,1754817035624,-459.83421577,0.00021973,2]
[378314712,1754817035633,-501.09350321,0.00021973,2]
[378314713,1754817035643,-608.48970317,0.00021973,2]
[378314714,1754817035652,-503.0800226,0.00021973,2]
[378314715,1754817035661,-507.71684695,0.00021973,2]
[378314716,1754817035670,-500.0,0.00021973,2]
[378314717,1754817035679,-500.0,0.00021973,2]
[378314718,1754817035688,-500.0,0.00021973,2]
[378314719,1754817035698,-500.0,0.00021973,2]
[378314720,1754817035707,-500.0,0.00021973,2]
[378314721,1754817035716,-500.0,0.00021973,2]
[378314722,1754817035725,-500.0,0.00021973,2]
[378314723,1754817035734,-500.95038439,0.00021973,2]
[378314724,1754817035743,-501.68032397,0.00021978,2]
[378314725,1754817035753,-151.0,0.0002199,7]
[378314726,1754817035762,-100000.0,0.0002199,2]
[378314727,1754817035772,-331.0,0.00021999,2]
[378314728,1754817035782,-471.17075372,0.00022,2]
[378314729,1754817035792,-1000.0,0.00022,22]
[378314730,1754817035801,-313.66190617,0.00022021,2]
[378314731,1754817035811,-331.0,0.00022047,2]
[378314732,1754817035821,-331.0,0.00022095,2]
[378314733,1754817035830,-331.0,0.00022127,2]
[378314734,1754817035840,-331.0,0.00022134,2]
[378314735,1754817035849,-331.0,0.00022139,2]
[378314736,1754817035858,-331.0,0.00022141,2]
[378314737,1754817035867,-331.0,0.00022162,2]
[378314738,1754817035877,-200.0,0.00022181,15]
[378314739,1754817035886,-300.0,0.00022181,15]
[378314740,1754817035896,-151.0,0.00022188,7]
[378314741,1754817035905,-1000.0,0.00022221,2]
[378314742,1754817035915,-1000.0,0.00022221,2]
[378314743,1754817035924,-1000.0,0.00022221,2]
[378314744,1754817035933,-460.0,0.00022222,2]
[378314745,1754817035943,-460.0,0.00022222,2]
[378314746,1754817035952,-4072.81,0.00022222,2]
[378314747,1754817035962,-460.0,0.00022222,2]
[378314748,1754817035971,-514.98,0.00022222,2]
[378314749,1754817035980,-460.0,0.00022222,2]
[378314750,1754817035989,-460.0,0.00022223,2]
[378314751,1754817035999,-460.0,0.00022223,2]
[378314752,1754817036009,-460.0,0.00022223,2]
[378314753,1754817036018,-151.0,0.00022223,7]
[378314754,1754817036027,-460.0,0.00022223,2]
[378314755,1754817036036,-460.0,0.00022223,2]
[378314756,1754817036045,-460.0,0.00022223,2]
[378314757,1754817036056,-460.0,0.00022223,2]
[378314758,1754817036068,-460.0,0.00022223,2]
[378314759,1754817036078,-460.0,0.00022223,2]
[378314760,1754817036087,-460.0,0.00022223,2]
[378314761,1754817036097,-460.0,0.00022223,2]
[378314762,1754817036107,-460.0,0.00022223,2]
[378314763,1754817036116,-460.0,0.00022223,2]
[378314764,1754817036125,-460.0,0.00022223,2]
[378314765,1754817036135,-794.74,0.00022223,2]
[378314766,1754817036146,-151.0,0.00022223,7]
[378314767,1754817036155,-151.0,0.00022224,7]
[378314768,1754817036165,-460.0,0.00022224,2]
[378314769,1754817036175,-460.0,0.00022224,2]
[378314770,1754817036184,-506.97,0.00022224,2]
[378314771,1754817036193,-151.0,0.00022225,7]
[378314772,1754817036202,-331.0,0.00022227,2]
[378314773,1754817036212,-160.0,0.00022232,2]
[378314774,1754817036221,-331.0,0.00022271,2]
[378314775,1754817036230,-331.0,0.000223,2]
[378314776,1754817036240,-331.0,0.00022312,2]
[378314777,1754817036249,-331.0,0.00022325,2]
[378314778,1754817036258,-160.0,0.00022347,2]
[378314779,1754817036268,-160.0,0.0002235,2]
[378314780,1754817036278,-215.44987349,0.0002235,2]
[378314781,1754817036287,-160.0,0.0002235,2]
[378314782,1754817036297,-160.0,0.0002235,2]
[378314783,1754817036306,-216.64838636,0.0002235,2]
[378314784,1754817036316,-461.62346162,0.0002235,2]
[378314785,1754817036325,-231.96268195,0.0002235,2]
[378314786,1754817036334,-160.0,0.0002235,2]
[378314787,1754817036344,-160.0,0.0002235,2]
[378314788,1754817036353,-843.0869304,0.0002235,2]
[378314789,1754817036363,-331.0,0.0002235,2]
[378314790,1754817036372,-151.0,0.00022351,7]
[378314791,1754817036381,-151.0,0.00022351,7]
[378314792,1754817036391,-151.0,0.00022351,7]
[378314793,1754817036400,-331.0,0.00022382,2]
[378314794,1754817036410,-331.0,0.00022402,2]
[378314795,1754817036419,-460.0,0.00022496,2]
[378314796,1754817036429,-460.0,0.00022496,2]
[378314797,1754817036438,-4072.81,0.00022496,2]
[378314798,1754817036448,-460.0,0.00022496,2]
[378314799,1754817036457,-460.0,0.00022496,2]
[378314800,1754817036467,-460.0,0.00022497,2]
[378314801,1754817036478,-460.0,0.00022497,2]
[378314802,1754817036488,-460.0,0.00022497,2]
[378314803,1754817036497,-460.0,0.00022497,2]
[378314804,1754817036507,-460.0,0.00022497,2]
[378314805,1754817036516,-460.0,0.00022497,2]
[378314806,1754817036526,-460.0,0.00022497,2]
[378314807,1754817036535,-460.0,0.00022497,2]
[378314808,1754817036544,-460.0,0.00022497,2]
[378314809,1754817036554,-460.0,0.00022497,2]
[378314810,1754817036564,-460.0,0.00022497,2]
[378314811,1754817036573,-313.78,0.00022497,2]
[378314812,1754817036584,-460.0,0.00022497,2]
[378314813,1754817036594,-460.0,0.00022497,2]
[378314814,1754817036603,-794.74,0.00022497,2]
[378314815,1754817036613,-151.0,0.00022498,7]
[378314816,1754817036622,-151.0,0.00022498,7]
[378314817,1754817036632,-460.0,0.00022498,2]
[378314818,1754817036642,-460.0,0.00022498,2]
[378314819,1754817036652,-506.97,0.00022498,2]
[378314820,1754817036661,-151.0,0.00022499,7]
[378314821,1754817036670,-151.0,0.00022506,7]
[378314822,1754817036679,-500.0,0.00022521,2]
[378314823,1754817036689,-1000.0,0.00022521,2]
[378314824,1754817036698,-500.0,0.00022521,2]
[378314825,1754817036707,-1005.6601464,0.00022521,2]
[378314826,1754817036716,-979.29531409,0.00022673,3]
[378314827,1754817036726,-151.0,0.00022768,7]
[378314828,1754817036735,-711.74076198,0.00022768,2]
[378314829,1754817036744,-832.65232337,0.00022768,2]
[378314830,1754817036754,-460.0,0.0002277,2]
[378314831,1754817036764,-460.0,0.0002277,2]
[378314832,1754817036773,-4072.81,0.0002277,2]
[378314833,1754817036783,-460.0,0.0002277,2]
[378314834,1754817036792,-336.95,0.0002277,2]
[378314835,1754817036802,-460.0,0.00022771,2]
[378314836,1754817036811,-460.0,0.00022771,2]
[378314837,1754817036820,-460.0,0.00022771,2]
[378314838,1754817036830,-151.0,0.00022771,7]
[378314839,1754817036839,-460.0,0.00022771,2]
[378314840,1754817036849,-460.0,0.00022771,2]
[378314841,1754817036858,-460.0,0.00022771,2]
[378314842,1754817036867,-460.0,0.00022771,2]
[378314843,1754817036877,-380.12,0.00022771,2]
[378314844,1754817036886,-460.0,0.00022771,2]
[378314845,1754817036896,-460.0,0.00022771,2]
[378314846,1754817036905,-460.0,0.00022771,2]
[378314847,1754817036915,-460.0,0.00022771,2]
[378314848,1754817036924,-460.0,0.00022771,2]
[378314849,1754817036934,-794.74,0.00022771,2]
[378314850,1754817036943,-460.0,0.00022772,2]
[378314851,1754817036952,-460.0,0.00022772,2]
[378314852,1754817036961,-506.97,0.00022772,2]
[378314853,1754817036970,-260.0,0.0002278,2]
[378314854,1754817036980,-500.0,0.00022794,2]
[378314855,1754817036990,-270.843383,0.00022798,7]
[378314856,1754817037000,-5315.86,0.0002281,3]
[378314857,1754817037010,-2657.94,0.0002281,3]
[378314858,1754817037022,-1328.96,0.0002281,3]
[378314859,1754817037032,-664.48,0.0002281,3]
[378314860,1754817037043,-332.24,0.0002281,3]
[378314861,1754817037054,-12668.57659669,0.0002281,3]
[378314862,1754817037065,-461.62346162,0.0002281,3]
[378314863,1754817037077,-501.552296,0.00022875,2]
[378314864,1754817037087,-500.0,0.00022875,2]
[378314865,1754817037098,-505.4876256,0.00022875,2]
[378314866,1754817037108,-1000.0,0.00022947,2]
[378314867,1754817037118,-500.0,0.00022973,2]
[378314868,1754817037128,-420.0,0.00022976,2]
[378314869,1754817037141,-1000.0,0.00023,23]
[378314870,1754817037150,-193.93783112,0.00023,2]
[378314871,1754817037161,-1359.7280243,0.00023,2]
[378314872,1754817037170,-1340.43618727,0.00023,2]
[378314873,1754817037180,-160.0,0.00023,2]
[378314874,1754817037191,-231.96268195,0.00023,3]
[378314875,1754817037200,-160.0,0.00023,3]
[378314876,1754817037210,-160.0,0.00023,3]
[378314877,1754817037219,-160.0,0.00023,3]
[378314878,1754817037229,-160.0,0.00023,3]
[378314879,1754817037239,-843.0869304,0.0002304,3]
[378314880,1754817037249,-460.0,0.00023044,2]
[378314881,1754817037262,-460.0,0.00023044,2]
[378314882,1754817037273,-4072.81,0.00023044,2]
[378314883,1754817037283,-608.49512325,0.00023044,2]
[378314884,1754817037294,-460.0,0.00023045,2]
[378314885,1754817037306,-361.15764244,0.00023045,2]
[378314886,1754817037317,-460.0,0.00023045,2]
[378314887,1754817037326,-460.0,0.00023045,2]
[378314888,1754817037336,-285.72834214,0.00023045,2]
[378314889,1754817037345,-460.0,0.00023045,2]
[378314890,1754817037355,-460.0,0.00023045,2]
[378314891,1754817037364,-460.0,0.00023045,2]
[378314892,1754817037374,-460.0,0.00023045,2]
[378314893,1754817037383,-460.0,0.00023045,2]
[378314894,1754817037393,-460.0,0.00023045,2]
[378314895,1754817037402,-460.0,0.00023045,2]
[378314896,1754817037411,-794.74,0.00023045,2]
[378314897,1754817037421,-460.0,0.00023046,2]
[378314898,1754817037430,-460.0,0.00023046,2]
[378314899,1754817037440,-506.97,0.00023046,2]
[378314900,1754817037449,-1500.0,0.00023068,2]
[378314901,1754817037458,-500.0,0.00023073,2]
[378314902,1754817037468,-600.0,0.00023073,2]
[378314903,1754817037477,-530.84321249,0.00023073,2]
[378314904,1754817037487,-200.0,0.000231,6]
[378314905,1754817037498,-500.0,0.00023288,2]
[378314906,1754817037507,-460.0,0.00023318,2]
[378314907,1754817037517,-460.0,0.00023318,2]
[378314908,1754817037527,-4072.81,0.00023318,2]
[378314909,1754817037538,-190.14742887,0.00023319,2]
[378314910,1754817037548,-460.0,0.00023319,2]
[378314911,1754817037557,-460.0,0.00023319,2]
[378314912,1754817037566,-460.0,0.00023319,2]
[378314913,1754817037576,-460.0,0.00023319,2]
[378314914,1754817037585,-460.0,0.00023319,2]
[378314915,1754817037595,-450.48,0.00023319,2]
[378314916,1754817037604,-376.58,0.00023319,2]
[378314917,1754817037613,-460.0,0.00023319,2]
[378314918,1754817037622,-460.0,0.00023319,2]
[378314919,1754817037631,-794.74,0.00023319,2]
[378314920,1754817037640,-460.0,0.0002332,2]
[378314921,1754817037650,-460.0,0.0002332,2]
[378314922,1754817037660,-506.97,0.0002332,2]
[378314923,1754817037669,-360.0,0.00023328,2]
[378314924,1754817037679,-1620.86049073,0.00023409,2]
[378314925,1754817037689,-1000.0,0.00023423,2]
[378314926,1754817037699,-500.0,0.00023456,2]
[378314927,1754817037710,-460.0,0.00023592,2]
[378314928,1754817037719,-460.0,0.00023592,2]
[378314929,1754817037729,-4072.81,0.00023592,2]
[378314930,1754817037738,-253.42,0.00023593,2]
[378314931,1754817037748,-460.0,0.00023593,2]
[378314932,1754817037758,-460.0,0.00023593,2]
[378314933,1754817037767,-460.0,0.00023593,2]
[378314934,1754817037776,-460.0,0.00023593,2]
[378314935,1754817037785,-483.657948,0.00023593,2]
[378314936,1754817037794,-175.42057635,0.00023593,2]
[378314937,1754817037803,-794.74,0.00023593,2]
[378314938,1754817037931,-460.0,0.00023594,2]
[378314940,1754817037941,-460.0,0.00023594,2]
[378314941,1754817037951,-506.97,0.00023594,2]
[378314943,1754817037960,-2000.0,0.00023616,2]
[378314945,1754817037969,-1200.0,0.00023621,2]
[378314946,1754817037978,-277.0,0.000237,2]
[378314947,1754817037987,-636.0,0.00023745,2]
[378314948,1754817037997,-971.0,0.00023745,2]
[378314949,1754817038006,-2150.0,0.00023745,2]
[378314950,1754817038016,-408.0,0.00023745,2]
[378314951,1754817038025,-416.045,0.00023745,2]
[378314952,1754817038034,-460.0,0.00023866,2]
[378314953,1754817038043,-460.0,0.00023866,2]
[378314954,1754817038052,-4072.81,0.00023866,2]
[378314955,1754817038062,-460.0,0.00023867,2]
[378314956,1754817038076,-460.0,0.00023867,2]
[378314957,1754817038085,-460.0,0.00023867,2]
[378314958,1754817038096,-460.0,0.00023867,2]